Cogmind - Beta 11 @@@ ROGUE MODE // 2022.04.17 @ 01:32:47 Player: ktur Result: Destroyed by G-50 Soldier with Heavy Laser Performance ------------- Evolutions (1) 500 Regions Visited (6) 1200 Robots Destroyed (47) 235 Value Destroyed (1139) 1139 Prototype IDs (25) 500 Alien Tech Used (0) 0 Bonus (300) 300 TOTAL SCORE: 3874 Bonus ------- Aligned with FarCom 300 Cogmind --------- Core Integrity 0/400 Matter 181/300 Energy 100/100 System Corruption 8% Temperature Cool (9) Movement Treading (320) Ox2 Location -8/Mines Parts ------- > --- POWER (1) -------- (None) > --- PROPULSION (2) --- Light Treads Light Treads > --- UTILITY (4) ------ Huge Storage Unit > --- WEAPON (2) ------- Heavy Assault Rifle > --- INVENTORY (25) --- Light Ion Engine Flight Unit Flight Unit Flight Unit Flight Unit Small Storage Unit Medium Storage Unit High-capacity Matter Pod (200) Improved Sensor Array Hacking Suite Hacking Suite Hacking Suite Hacking Suite Hacking Suite Hacking Suite Hacking Suite Heavy Assault Rifle Datajack Flail Peak State ------------ > --- POWER ------------ Ion Engine > --- PROPULSION ------- Armored Treads Armored Treads > --- UTILITY ---------- Huge Storage Unit Targeting Computer Weapon Shielding Medium Armor Plating > --- WEAPON ----------- Heavy Assault Rifle Heavy Assault Rifle > --- INVENTORY -------- Light Ion Engine Light Treads Light Treads Light Treads Light Treads Armored Treads Armored Treads Flight Unit Flight Unit Flight Unit Flight Unit Medium Storage Unit High-capacity Matter Pod Improved Sensor Array Hacking Suite Hacking Suite Hacking Suite Hacking Suite Hacking Suite Hacking Suite Hacking Suite Light Assault Rifle Heavy Assault Rifle Datajack Hammer [Rating: 20] Favorites ----------- Power Ion Engine Engine Ion Engine Propulsion Light Treads Treads Light Treads Utility Targeting Computer Storage Huge Storage Unit Processor Targeting Computer Protection Light Armor Plating Weapon Heavy Assault Rifle Ballistic Gun Heavy Assault Rifle Launcher Rocket Launcher Build | -11 -10 -10 -9 -9 -9 -8 ------- Run | Scr Mat Min Mat Min Exi Min Slots Evolved 2 | . . . 2 . . . Power . | . . . . . . . Propulsion . | . . . . . . . Utility 2 | . . . 2 . . . Weapon . | . . . . . . . Parts Attached 41 | 6 5 2 21 . 4 3 Power 5 | 1 . 1 3 . . . Engine 5 | 1 . 1 3 . . . Core . | . . . . . . . Reactor . | . . . . . . . Propulsion 12 | 2 . . 6 . 3 1 Treads 12 | 2 . . 6 . 3 1 Leg . | . . . . . . . Wheel . | . . . . . . . Hover . | . . . . . . . Flight . | . . . . . . . Utility 11 | 1 4 . 6 . . . Device . | . . . . . . . Storage 4 | 1 2 . 1 . . . Processor 1 | . 1 . . . . . Hackware . | . . . . . . . Protection 6 | . 1 . 5 . . . Artifact . | . . . . . . . Weapon 13 | 2 1 1 6 . 1 2 Energy Gun . | . . . . . . . Energy Cannon . | . . . . . . . Ballistic Gun 11 | 2 1 1 6 . . 1 Ballistic Cannon . | . . . . . . . Launcher 2 | . . . . . 1 1 Special Weapon . | . . . . . . . Impact Weapon . | . . . . . . . Slashing Weapon . | . . . . . . . Piercing Weapon . | . . . . . . . Special Melee Weapon . | . . . . . . . Unidentified Prototypes . | . . . . . . . Parts Lost 10 | . . 1 . . 7 2 Power 1 | . . 1 . . . . Propulsion 3 | . . . . . 2 1 Utility 3 | . . . . . 3 . Weapon 3 | . . . . . 2 1 Highest Loss Streak 7 | . . 1 . . 7 2 To Critical Strikes 1 | . . . . . 1 . Average Slot Usage (%) 95 | . 90 98 96 100 95 44 Engine 11 | . 14 12 11 11 10 . Treads 23 | . 28 28 22 22 21 22 Storage 11 | . 14 14 11 11 11 11 Processor 9 | . 4 14 11 11 10 . Protection 14 | . 1 . 18 22 20 . Ballistic Gun 23 | . 27 28 22 22 20 11 Naked Turns . | . . . . . . . Heaviest Build 101 | 13 29 28 101 101 101 . Greatest Support 40 | 40 40 40 40 40 40 . Greatest Overweight (x) 5 | 1 . . 2 2 5 . Average Overweight (x) . | . . . 1 2 1 . Largest Inventory Capacity 25 | 8 15 15 25 25 25 25 Average Capacity 20 | 7 12 15 21 25 25 25 Most Carried 25 | 4 15 15 25 25 25 21 Average Carried 19 | 2 10 14 20 25 24 19 Final Capacity 25 | 8 15 15 25 25 25 25 Final Carried 25 | 4 15 15 25 25 22 19 Class Distribution -------------------- 57% | Scavenger-Mutant 42% | Mutant Dominant Class ---------------- Mutant | -10/Materials Mutant | -10/Mines Scavenger-Mutant | -9/Materials Scavenger-Mutant | -9/Mines Scavenger-Mutant | -9/Exiles Scavenger-Mutant | -8/Mines Resources | -11 -10 -10 -9 -9 -9 -8 ----------- Run | Scr Mat Min Mat Min Exi Min Matter Collected 1387 | 174 342 57 802 12 . . Remotely . | . . . . . . . Salvage Created 1883 | . 413 134 1178 68 19 71 Parts 126 | . 25 12 82 2 . 5 Haulers Intercepted 5 | . 1 . 4 . . . Recyclers Shooed 6 | . . . 5 1 . . Parts Field Recycled . | . . . . . . . Retrieved Matter . | . . . . . . . Parts Self-Destructed . | . . . . . . . Prevented . | . . . . . . . Kills | -11 -10 -10 -9 -9 -9 -8 ------- Run | Scr Mat Min Mat Min Exi Min Combat Hostiles Destroyed 38 | . 10 5 15 . 6 2 Guns 32 | . 10 5 15 . . 2 AOE 6 | . . . . . 6 . Classes Destroyed 9 | . 4 . 4 . 1 . Builder 1 | . . . 1 . . . Hauler 5 | . 1 . 4 . . . Recycler 4 | . . . 4 . . . Operator 4 | . 2 . 2 . . . Watcher 1 | . . . 1 . . . Swarmer 9 | . 3 3 3 . . . Grunt 17 | . 7 2 6 . . 2 Sentry 6 | . . . 6 . . . Assembled 6 | . . . . . 6 . Best Kill Streak 6 | . 3 3 3 . 6 2 Combat Bots Only 6 | . 3 3 3 . 6 2 Max Kills in Single Turn 3 | . 1 1 2 . 3 2 Gunslinging . | . . . . . . . Exploded 3 | . . . . . 3 . Melee . | . . . . . . . Uniques/NPCs Destroyed . | . . . . . . . Combat | -11 -10 -10 -9 -9 -9 -8 -------- Run | Scr Mat Min Mat Min Exi Min Damage Taken 3183 | . 454 93 745 . 1485 406 Core 545 | . 103 30 62 . 253 97 Absorbed by Shields . | . . . . . . . Redirected to Shielding 46 | . 3 . 43 . . . Regen/Repaired (Parts) 76 | . 76 . . . . . Core Remaining (%) 73 | 100 . 46 . . . . Volleys Fired 171 | . 52 11 89 4 5 10 Largest 2 | . 2 2 2 2 2 1 Hottest 46 | . 40 40 46 46 46 33 Shots Fired 329 | . 104 22 177 8 7 11 Gun 325 | . 104 22 177 8 4 10 Cannon . | . . . . . . . Launcher 4 | . . . . . 3 1 Special . | . . . . . . . Kinetic 325 | . 104 22 177 8 4 10 Thermal . | . . . . . . . Explosive 4 | . . . . . 3 1 Electromagnetic . | . . . . . . . Robot Hit Streak 15 | . 9 6 15 8 2 6 Robot Miss Streak 3 | . 3 2 3 2 . 1 Penetration Max . | . . . . . . . Secondary Targets 4 | . 1 2 1 . . . Max Gunslinging Chain 1 | . 1 1 1 . . . Shots Hit Robots 226 | . 68 14 128 5 2 9 Core Hits 98 | . 26 10 45 2 9 6 Critical Kills . | . . . . . . . Critical Parts Destroyed . | . . . . . . . Critical Strikes . | . . . . . . . Melee Attacks . | . . . . . . . Impact . | . . . . . . . Slashing . | . . . . . . . Piercing . | . . . . . . . Sneak Attacks . | . . . . . . . Combat Hostiles . | . . . . . . . Follow-up Attacks . | . . . . . . . Damage Inflicted 3320 | . 785 151 1657 83 377 267 Guns 2775 | . 776 151 1640 72 . 136 Cannons . | . . . . . . . Explosions 506 | . . . . . 375 131 Melee . | . . . . . . . Ramming 39 | . 9 . 17 11 2 . Kinetic 2775 | . 776 151 1640 72 . 136 Thermal . | . . . . . . . Explosive 506 | . . . . . 375 131 Electromagnetic . | . . . . . . . Impact . | . . . . . . . Slashing . | . . . . . . . Piercing . | . . . . . . . Highest Corruption 8 | . . . . . 8 8 Average Corruption 8 | . . . . . 8 8 Corruption Purged . | . . . . . . . Corruption Blocked . | . . . . . . . Effects 5 | . . . . . 4 1 Message Errors 2 | . . . . . 2 . Heat Flow Errors 1 | . . . . . 1 . Parts Rejected 1 | . . . . . 1 . Misfires 1 | . . . . . . 1 Overload Shots . | . . . . . . . Overflow Damage 19 | . . . . . 19 . Projectiles . | . . . . . . . Explosions 19 | . . . . . 19 . Melee . | . . . . . . . Knockbacks 2 | . 1 . . 1 . . Impact 2 | . 1 . . 1 . . Kinetic . | . . . . . . . Secondary . | . . . . . . . Self-Inflicted Damage 108 | . . . . . 70 38 Shots 3 | . . . . . 2 1 Rammed 9 | . 3 . 4 1 1 . Targets Rammed 9 | . 3 . 4 1 1 . Kicked . | . . . . . . . Crushed . | . . . . . . . Highest Temperature 171 | . 18 4 25 . 171 30 Average Temperature 8 | . 8 4 4 . 78 10 Received Heat Transfer 743 | . 234 27 246 . 20 216 Siege Activations . | . . . . . . . Robots Corrupted . | . . . . . . . Combat Hostiles . | . . . . . . . Parts Fried . | . . . . . . . Impact Corruptions . | . . . . . . . Robots Melted . | . . . . . . . Combat Hostiles . | . . . . . . . Parts Melted . | . . . . . . . Heat Transferred . | . . . . . . . Parts Sabotaged . | . . . . . . . Parts Stolen . | . . . . . . . Parts Stripped . | . . . . . . . Power Chain Reactions . | . . . . . . . Missiles Intercepted . | . . . . . . . Alert | -11 -10 -10 -9 -9 -9 -8 ------- Run | Scr Mat Min Mat Min Exi Min Peak Influence 257 | . 220 170 257 50 . 43 Initial 66 | . . 45 66 38 . . Average 79 | . 79 80 98 32 . 22 Maximum Alert Level 1 | . 1 . 1 . . . Low Security (%) 94 | 100 96 100 91 100 . 100 Level 1 5 | . 3 . 8 . . . Level 2 . | . . . . . . . Level 3 . | . . . . . . . Level 4 . | . . . . . . . Level 5 . | . . . . . . . High Security . | . . . . . . . Max Security . | . . . . . . . Squads Dispatched 5 | . 2 . 3 . . . Investigation 2 | . . . 2 . . . Extermination . | . . . . . . . Reinforcement 3 | . 2 . 1 . . . Assault . | . . . . . . . Garrison . | . . . . . . . Intercept . | . . . . . . . Searches Triggered . | . . . . . . . Construction Impeded . | . . . . . . . Haulers Reinforced . | . . . . . . . Active Scanning Responses . | . . . . . . . Cargo Convoy Interrupts . | . . . . . . . Stealth | -11 -10 -10 -9 -9 -9 -8 --------- Run | Scr Mat Min Mat Min Exi Min Distress Signals 4 | . 1 . 3 . . . Communications Jammed . | . . . . . . . Distress Signals . | . . . . . . . Times Spotted 69 | . 24 5 26 . 11 3 Peak Tracking Total 11 | . 4 3 4 . 11 3 Tactical Retreats 3 | . 1 . 1 . 1 . Traps | -11 -10 -10 -9 -9 -9 -8 ------- Run | Scr Mat Min Mat Min Exi Min Traps Triggered . | . . . . . . . Indirectly . | . . . . . . . Trap Hack Attempts . | . . . . . . . Triggered . | . . . . . . . Disarmed . | . . . . . . . Reprogrammed . | . . . . . . . Reused . | . . . . . . . Traps Extracted . | . . . . . . . Installed . | . . . . . . . Triggered . | . . . . . . . Machines | -11 -10 -10 -9 -9 -9 -8 ---------- Run | Scr Mat Min Mat Min Exi Min Machines Disabled 6 | . . . . 3 3 . Max in Single Turn 2 | . . . . 2 1 . Machines Sabotaged . | . . . . . . . Garrisons Compromised . | . . . . . . . Overloaded Fab Kills . | . . . . . . . Hacking | -11 -10 -10 -9 -9 -9 -8 --------- Run | Scr Mat Min Mat Min Exi Min Machines Accessed 15 | . 7 . 6 . 2 . Terminals 9 | . 5 . 4 . . . Fabricators . | . . . . . . . Repair Stations 1 | . 1 . . . . . Recycling Units 2 | . 1 . 1 . . . Scanalyzers 1 | . . . 1 . . . Garrison Access . | . . . . . . . Total Hacks 43 | . 26 . 15 . 2 . Successful 27 | . 17 . 8 . 2 . Failed 16 | . 9 . 7 . . . Catastrophic 2 | . 1 . 1 . . . Database Lockouts . | . . . . . . . Manual 21 | . 17 . 3 . 1 . Terminals 30 | . 20 . 10 . . . Fabricators . | . . . . . . . Repair Stations 2 | . 2 . . . . . Recycling Units 6 | . 4 . 2 . . . Scanalyzers 3 | . . . 3 . . . Garrison Access . | . . . . . . . Terminal Hacks 14 | . 9 . 3 . 2 . Record 2 | . 1 . . . 1 . Robot Analysis 2 | . 2 . . . . . Prototype ID Bank 1 | . 1 . . . . . Unreport Threat 4 | . 2 . 2 . . . Locate Traps 3 | . 2 . 1 . . . Hauler Manifests 1 | . 1 . . . . . EX-Prototype ID Bank 1 | . . . . . 1 . Fabricator Hacks . | . . . . . . . Repair Station Hacks 2 | . 2 . . . . . Scan Component 1 | . 1 . . . . . Repair 1 | . 1 . . . . . Recycling Unit Hacks 2 | . 1 . 1 . . . Retrieve Components 2 | . 1 . 1 . . . Scanalyzer 3 | . . . 3 . . . Insert Component 1 | . . . 1 . . . Analyze 2 | . . . 2 . . . Garrison Access Hacks . | . . . . . . . Unauthorized Hacks 6 | . 5 . 1 . . . Terminals 3 | . 3 . . . . . Assimilate 1 | . 1 . . . . . Botnet 1 | . 1 . . . . . Operators 1 | . 1 . . . . . Fabricators . | . . . . . . . Repair Stations . | . . . . . . . Recycling Units 3 | . 2 . 1 . . . Reject 2 | . 1 . 1 . . . Mask 1 | . 1 . . . . . Scanalyzers . | . . . . . . . Garrison Access . | . . . . . . . Data Cores Recovered 1 | . . . 1 . . . Used . | . . . . . . . Hacking Detections 11 | . 7 . 4 . . . Full Trace Events 3 | . 1 . 2 . . . Feedback Events . | . . . . . . . Feedback Blocked . | . . . . . . . Robot Schematics Acquired . | . . . . . . . Robots Built . | . . . . . . . Authchips . | . . . . . . . Time . | . . . . . . . Total Robot Build Rating . | . . . . . . . Part Schematics Acquired 1 | . . . 1 . . . Parts Built . | . . . . . . . Authchips . | . . . . . . . Time . | . . . . . . . Total Part Build Rating . | . . . . . . . Parts Repaired 1 | . 1 . . . . . Time 26 | . 26 . . . . . Parts Recycled . | . . . . . . . Recycled Matter . | . . . . . . . Retrieved Matter . | . . . . . . . Retrieved Components 11 | . 1 . 10 . . . Parts Scanalyzed 1 | . . . 1 . . . Part Schematics Acquired 1 | . . . 1 . . . Parts Damaged . | . . . . . . . Bothacking | -11 -10 -10 -9 -9 -9 -8 ------------ Run | Scr Mat Min Mat Min Exi Min Used RIF Installer . | . . . . . . . Robots Hacked . | . . . . . . . Non-combat . | . . . . . . . Combat . | . . . . . . . Robot Hacks Applied . | . . . . . . . Relay Couplers Released . | . . . . . . . Fabnet Peak Effective % . | . . . . . . . Robots Rewired . | . . . . . . . Allies Hacked . | . . . . . . . Hacks Repelled . | . . . . . . . Allies | -11 -10 -10 -9 -9 -9 -8 -------- Run | Scr Mat Min Mat Min Exi Min Total Allies 4 | . 1 . . 3 . . Largest Group 3 | . 1 . . 3 3 . Highest-Rated Group 40 | . 10 . . 40 40 . Highest-Rated Ally 16 | . 10 . . 16 16 . Total Orders . | . . . . . . . Ally Attacks 11 | . . . . . 11 . Total Damage 113 | . . . . . 113 . Kills . | . . . . . . . Allies Corrupted . | . . . . . . . Allies Melted . | . . . . . . . Intel | -11 -10 -10 -9 -9 -9 -8 ------- Run | Scr Mat Min Mat Min Exi Min Robot Analysis Total 2 | . 2 . . . . . Derelict Logs Recovered 1 | . . 1 . . . . Drone Launches . | . . . . . . . Drone Recoveries . | . . . . . . . Exploration | -11 -10 -10 -9 -9 -9 -8 ------------- Run | Scr Mat Min Mat Min Exi Min Turns Passed 5396 | 77 1117 320 2089 641 1130 22 Spaces Moved 1985 | 43 558 174 679 190 341 . Core 5 | 5 . . . . . . Treads 1980 | 38 558 174 679 190 341 . Legs . | . . . . . . . Wheels . | . . . . . . . Hover . | . . . . . . . Flight . | . . . . . . . Fastest Speed 50 | 50 160 160 160 330 245 . Average Speed 237 | 151 160 160 257 330 325 . Slowest Speed 570 | 160 160 160 330 330 570 . Overloaded Moves . | . . . . . . . Propulsion Burnouts . | . . . . . . . Robots Hopped . | . . . . . . . Cave-ins Triggered . | . . . . . . . Exploration Rate (%) 42 | 3 88 40 58 42 62 5 Regions Visited 6 Branch Regions 4 Pre-discovered Areas 1 | . . . . . 1 . Known Exits Taken . | . . . . . . . Unknown Exits Taken 6 | 1 1 1 1 1 1 . Scrap Searched . | . . . . . . . Spaces Dug 8 | . . . . . . 8 Terrain Destroyed 22 | . . . . . 14 8 Melee . | . . . . . . . Projectile . | . . . . . . . AOE 22 | . . . . . 14 8 Terrain Rammed . | . . . . . . . Walls Destroyed . | . . . . . . . Machines Disabled . | . . . . . . . Actions | -11 -10 -10 -9 -9 -9 -8 --------- Run | Scr Mat Min Mat Min Exi Min Total 2363 | 52 689 196 862 196 355 13 Wait 87 | . 53 8 24 2 . . Move 1979 | 42 557 173 678 189 340 . Hop . | . . . . . . . Pick Up 41 | 4 13 1 21 . 2 . Fast Attach 15 | 6 4 . 5 . . . Attach 9 | . . 1 1 . 4 3 Detach 2 | . 1 . . . 1 . Swap 17 | . 1 1 15 . . . Drop 33 | . 5 1 25 . 2 . Fire 171 | . 52 11 89 4 5 10 Melee . | . . . . . . . Ram . | . . . . . . . Kick . | . . . . . . . Crush 9 | . 3 . 4 1 1 . Escape Stasis . | . . . . . . . Rewire . | . . . . . . . Trap . | . . . . . . . Miscellaneous . | . . . . . . . Route ------- -11/Scrapyard -10/Materials (discovered 4 exits: *Mat x3 / [*Min]) -10/Mines -9/Materials (discovered 3 exits: [*Mat x2] / [*Min]) -9/Mines (discovered 2 exits: [*Mat] / *Exi) -9/Exiles -8/Mines History --------- Turn | Location | Event 18 | -11/Scrapyard | Discovered new exit (range 14) 78 | -11/Scrapyard | Entered Materials 307 | -10/Materials | Build established: Mutant 526 | -10/Materials | Repaired Assault Rifle 609 | -10/Materials | Discovered new exit (range 10) 941 | -10/Materials | Discovered new exit (range 13) 1068 | -10/Materials | Discovered new exit (range 7) 1144 | -10/Materials | Discovered new exit (range 7) 1195 | -10/Materials | Entered Mines 1221 | -10/Mines | A weapon hastily lodged in a ceiling crevice suddenly fell to the ground 1256 | -10/Mines | Learned Materials stockpile data 1463 | -10/Mines | Discovered new exit (range 9) 1470 | -10/Mines | Core integrity fell below 50% 1515 | -10/Mines | Entered Materials 1515 | -9/Materials | Evolved 2 slots: Utility x2 2049 | -9/Materials | Build established: Scavenger-Mutant 2331 | -9/Materials | Discovered new exit (range 4) 2727 | -9/Materials | Discovered new exit (range 16) 3140 | -9/Materials | Build established: Mutant 3584 | -9/Materials | Discovered new exit (range 7) 3604 | -9/Materials | Entered Mines 3615 | -9/Mines | Build established: Scavenger-Mutant 3634 | -9/Mines | Assisted by bots powering up and referring to "LRC-V3" 4108 | -9/Mines | Discovered new exit (range 8) 4227 | -9/Mines | Deemed a non-threat by the Exiles lab entrance 4230 | -9/Mines | Discovered new exit (range 5) 4245 | -9/Mines | Entered Exiles 4245 | -9/Exiles | Accompanied by 3 allies 4335 | -9/Exiles | Met 8R-AWN 4381 | -9/Exiles | Met EX-HEX 4476 | -9/Exiles | Met EX-BIN 4612 | -9/Exiles | Met EX-DEC 4628 | -9/Exiles | Learned location of Zion (-7) 4731 | -9/Exiles | Aligned with FarCom system 4734 | -9/Exiles | Given EX-Vault access code 4813 | -9/Exiles | Opened EX-Vault 4889 | -9/Exiles | Warned to stay clear of 0b10 Research branches 5256 | -9/Exiles | Attacked by the Exiles 5319 | -9/Exiles | Core integrity fell below 50% 5355 | -9/Exiles | Discovered new exit (range 10) 5360 | -9/Exiles | Lost 7 parts (2n3u2w) 5375 | -9/Exiles | Entered Mines 5377 | -8/Mines | Core integrity fell below 20% 5397 | -8/Mines | Destroyed by G-50 Soldier with Heavy Laser Last Messages --------------- 05337_ Penetrated by HV Slug. 05343_ 3NAQGJTI1D8 I KQYQT#L4CP6WE=/BC 05348_ Penetrated by HV Slug. 05348_ HV Slug penetrates Wall. 05348_ Penetrated by HV Slug. 05348_ HV Slug penetrates Wall. 05350_ Penetrated by HV Slug. 05355_ EXIT=FOUND 05357_ Penetrated by HV Slug. 05361_ System corrupted: Heat flow error (+199). LOCATION=UNKNOWN GOAL=ESCAPE 05377_ Rocket Launcher destroyed. 05379_ Destroyed Lgt. Nuclear Core. 05383_ Arm. Treads destroyed. 05388_ System corrupted: FCS attempts to trigger Hvy. Assault Rifle. 05388_ System corrupted: Hvy. Assault Rifle misfires. 05388_ G-47 Trooper destroyed. 05393_ Seismic Survey Station disabled. 05395_ Critical hit (Burn: +37). Map ----- +----------------------------------------------------+ | | | | | | | | | | | | | | | | | | | | | | | | | | | | | ?????????????????????????????????????????????????? | | ?????????????????????????????????????????????????? | | ?????????????????????????????????????????????????? | | ?????????????????????????????????????????????????? | | ?????????????????????????????????????????????????? | | ?????????????????????#########???????????????????? | | ?????????????????????# """ ###?????????????????? | | ?????????????????????# """ ??????????????????? | | ?????????????????????# "" #???????????????????? | | ?????????????######### #???????????????????? | | ?????????????# ##??????????????????? | | ?????????????# @ #??????????????????? | | ?????????????????##### ! = ##??????????????????? | | ????????????????????# %g%= #??????????????????? | | ????????????????????### !###??????????????????? | | ??????????????????????#### #????????????????????? | | ?????????????????????????? ????????????????????? | | ??????????????????????????####???????????????????? | | ?????????????????????????????????????????????????? | | ?????????????????????????????????????????????????? | | ?????????????????????????????????????????????????? | | ?????????????????????????????????????????????????? | | ?????????????????????????????????????????????????? | | ?????????????????????????????????????????????????? | | ?????????????????????????????????????????????????? | | ?????????????????????????????????????????????????? | | ?????????????????????????????????????????????????? | | ?????????????????????????????????????????????????? | | ?????????????????????????????????????????????????? | | ?????????????????????????????????????????????????? | | ?????????????????????????????????????????????????? | | ?????????????????????????????????????????????????? | | ?????????????????????????????????????????????????? | | ?????????????????????????????????????????????????? | | ?????????????????????????????????????????????????? | | ?????????????????????????????????????????????????? | +----------------------------------------------------+ Best States ------------- Heat Dissipation 28 Energy Generation 10 Energy Capacity 250 Matter Stores 300 Matter Capacity 300 Sight Range 16 Terrain Scan Density 10 Armor Coverage 375 Propulsion Shielding 33 Weapon Shielding 33 Evasion (%) 40 Targeting Accuracy 5 Recoil Reduction 2 Item Schematics ----------------- Hacking Suite | -9/Materials | Scanalyzed Robot Schematics ------------------ None Fabricated ------------ Nothing Alien Tech Used ----------------- None Achievements -------------- None Challenges ------------ None Game ------ Seed PhaseMakeshiftMapper Manual? 0 Play Time 00:21:55 Cumulative 345.1 hours Start 2022.04.17 @ 01:04:46 End 2022.04.17 @ 01:32:47 Sessions 1 Manual Loads 0 Difficulty Rogue Special Mode None Game No. 358 Rogue 358 Adventurer 0 Explorer 0 Win Type - Total 19 Types 11/2/3/2/0/0/0/1/0 Lore% 91 Gallery% 87 Achievement% 74 Wizard Run 0 Options --------- ASCII 0 Keyboard 0 Movement Arrows Keybinds 0 Fullscreen 1 Font 18/Smallcaps Map View 76x50 Tactical HUD 1 Map Filters NONE Filters NONE Steam 1 RUN: 6d9dc9cf-53ff-4a71-a4c4-b5b0100eb79f